[Event "*** SCC Grand Prix: Titled Tuesday Blitz"]
[Site "Chess.com"]
[Date "2020.07.07"]
[Round "7"]
[White "SaqoChess_Twitch"]
[Black "Fins0905"]
[Result "0-1"]
[WhiteElo "2443"]
[BlackElo "2632"]
[TimeControl "180+1"]
[EndTime "11:20:49 PDT"]
[Termination "Fins0905 won by resignation"]

1. d4 {[%clk 0:00:58.7]} 1... d5 {[%clk 0:02:53.8]} 2. c4 {[%clk 0:00:58.3]}
2... c6 {[%clk 0:02:53.6]} 3. e3 {[%clk 0:00:57.7]} 3... Bf5 {[%clk 0:02:52.7]}
4. Nc3 {[%clk 0:00:58.1]} 4... e6 {[%clk 0:02:52.7]} 5. Bd3 {[%clk 0:00:57.6]}
5... Bg6 {[%clk 0:02:51.5]} 6. Nf3 {[%clk 0:00:58]} 6... Nd7 {[%clk 0:02:51.2]}
7. O-O {[%clk 0:00:58.5]} 7... Ngf6 {[%clk 0:02:49.7]} 8. Ne5 {[%clk 0:00:59]}
8... Nxe5 {[%clk 0:02:45.8]} 9. dxe5 {[%clk 0:00:59.9]} 9... Nd7 {[%clk
0:02:45.5]} 10. f4 {[%clk 0:00:59.9]} 10... Nc5 {[%clk 0:02:39.3]} 11. Bxg6
{[%clk 0:00:59.2]} 11... hxg6 {[%clk 0:02:39.8]} 12. cxd5 {[%clk 0:00:59.7]}
12... cxd5 {[%clk 0:02:33]} 13. b4 {[%clk 0:00:59.7]} 13... Nd7 {[%clk
0:02:30.2]} 14. a3 {[%clk 0:00:57.3]} 14... Be7 {[%clk 0:02:23.7]} 15. e4 {[%clk
0:00:53.7]} 15... Rc8 {[%clk 0:02:13.4]} 16. Bb2 {[%clk 0:00:49.2]} 16... Nb6
{[%clk 0:01:46]} 17. exd5 {[%clk 0:00:48.1]} 17... exd5 {[%clk 0:01:44.7]} 18.
Qd3 {[%clk 0:00:31.8]} 18... Nc4 {[%clk 0:01:29.2]} 19. Bc1 {[%clk 0:00:30.3]}
19... Qb6+ {[%clk 0:01:12.1]} 20. Kh1 {[%clk 0:00:29.7]} 20... d4 {[%clk
0:01:12.1]} 21. Ne2 {[%clk 0:00:18.5]} 21... O-O {[%clk 0:00:59.8]} 22. Qxd4
{[%clk 0:00:18.8]} 22... Qa6 {[%clk 0:00:57.8]} 23. Qd3 {[%clk 0:00:17.8]} 23...
Rfd8 {[%clk 0:00:57.5]} 24. Qf3 {[%clk 0:00:18]} 24... Nb6 {[%clk 0:00:51.7]}
25. h3 {[%clk 0:00:18.2]} 25... Rd3 {[%clk 0:00:50.2]} 26. Qf2 {[%clk
0:00:17.7]} 26... Nd5 {[%clk 0:00:48.3]} 27. Ng3 {[%clk 0:00:17.7]} 27... Qc6
{[%clk 0:00:47.5]} 28. f5 {[%clk 0:00:18]} 28... gxf5 {[%clk 0:00:45.8]} 29.
Nxf5 {[%clk 0:00:16.3]} 29... Bf8 {[%clk 0:00:46]} 30. Nd4 {[%clk 0:00:14.9]}
30... Qg6 {[%clk 0:00:41.2]} 31. Nf3 {[%clk 0:00:12.7]} 31... Rb3 {[%clk
0:00:31.5]} 32. Nh4 {[%clk 0:00:11.3]} 32... Qh5 {[%clk 0:00:29.1]} 33. Bg5
{[%clk 0:00:10]} 33... Rcc3 {[%clk 0:00:16.8]} 34. Rad1 {[%clk 0:00:09.2]} 34...
Rxh3+ {[%clk 0:00:16.5]} 35. gxh3 {[%clk 0:00:09.9]} 35... Rxh3+ {[%clk
0:00:16.9]} 36. Kg1 {[%clk 0:00:09.9]} 36... Qg4+ {[%clk 0:00:17.1]} 37. Ng2
{[%clk 0:00:10.5]} 37... Qh5 {[%clk 0:00:16.5]} 38. Qxf7+ {[%clk 0:00:08.3]}
38... Qxf7 {[%clk 0:00:16.3]} 39. Rxf7 {[%clk 0:00:09]} 39... Kxf7 {[%clk
0:00:15]} 40. Rxd5 {[%clk 0:00:09.5]} 40... Rxa3 {[%clk 0:00:14.7]} 41. Rd7+
{[%clk 0:00:09.4]} 41... Ke6 {[%clk 0:00:14.9]} 42. Rxb7 {[%clk 0:00:09.8]}
42... Kf5 {[%clk 0:00:14.3]} 43. Bd2 {[%clk 0:00:08.5]} 43... Kxe5 {[%clk
0:00:13.9]} 44. b5 {[%clk 0:00:07.3]} 44... Ke4 {[%clk 0:00:13.2]} 45. Kf1
{[%clk 0:00:07.4]} 45... Kf3 {[%clk 0:00:13.1]} 46. Ne1+ {[%clk 0:00:07.8]}
46... Ke4 {[%clk 0:00:13.1]} 47. Rf7 {[%clk 0:00:07.8]} 47... Bc5 {[%clk
0:00:12.9]} 48. Rxg7 {[%clk 0:00:07.8]} 48... Ra2 {[%clk 0:00:13.1]} 49. Rg4+
{[%clk 0:00:05.9]} 49... Kd5 {[%clk 0:00:12]} 50. Rg2 {[%clk 0:00:06.8]} 50...
Rb2 {[%clk 0:00:11]} 51. Rg5+ {[%clk 0:00:07.2]} 51... Kc4 {[%clk 0:00:10.8]}
52. Rg4+ {[%clk 0:00:07]} 52... Kxb5 {[%clk 0:00:11]} 53. Rg2 {[%clk 0:00:07.5]}
53... a5 {[%clk 0:00:10.6]} 54. Ke2 {[%clk 0:00:08]} 54... a4 {[%clk 0:00:10.5]}
55. Nd3 {[%clk 0:00:07]} 55... Rc2 {[%clk 0:00:10.3]} 56. Rg5 {[%clk 0:00:07.6]}
56... a3 {[%clk 0:00:10.2]} 57. Kd1 {[%clk 0:00:08.2]} 57... Rc4 {[%clk
0:00:10.1]} 58. Be3 {[%clk 0:00:07.4]} 58... a2 {[%clk 0:00:09.7]} 59. Bd4
{[%clk 0:00:05.4]} 59... Rxd4 {[%clk 0:00:06.5]} 60. Rxc5+ {[%clk 0:00:06]}
60... Ka4 {[%clk 0:00:06.7]} 61. Rc1 {[%clk 0:00:06.6]} 61... Rxd3+ {[%clk
0:00:04.5]} 62. Kc2 {[%clk 0:00:07.2]} 62... Rb3 {[%clk 0:00:04.6]} 63. Ra1
{[%clk 0:00:06.7]} 63... Ka3 {[%clk 0:00:04.6]} 64. Rc1 {[%clk 0:00:06.3]} 64...
Rb8 {[%clk 0:00:04]} 65. Rh1 {[%clk 0:00:06.3]} 65... Rc8+ {[%clk 0:00:03.9]}
66. Kd2 {[%clk 0:00:06.7]} 66... Kb2 {[%clk 0:00:04.3]} 67. Rh7 {[%clk
0:00:06.2]} 67... Rb8 {[%clk 0:00:04]} 68. Ra7 {[%clk 0:00:04.3]} 68... a1=Q
{[%clk 0:00:04.2]} 69. Rc7 {[%clk 0:00:04]} 69... Qa2 {[%clk 0:00:04]} 70. Rc2+
{[%clk 0:00:04.4]} 70... Ka3 {[%clk 0:00:04.3]} 0-1

[Event "*** SCC Grand Prix: Titled Tuesday Blitz"]
[Site "Chess.com"]
[Date "2020.07.07"]
[Round "7"]
[White "giantslayer83"]
[Black "GM_LOADING"]
[Result "1-0"]
[WhiteElo "2729"]
[BlackElo "2569"]
[TimeControl "180+1"]
[EndTime "11:20:59 PDT"]
[Termination "giantslayer83 won by resignation"]

1. d4 {[%clk 0:03:00.9]} 1... Nf6 {[%clk 0:02:59.8]} 2. c4 {[%clk 0:03:00.4]}
2... e6 {[%clk 0:02:59.7]} 3. Nf3 {[%clk 0:03:00]} 3... Bb4+ {[%clk 0:03:00.1]}
4. Nbd2 {[%clk 0:02:59.1]} 4... b6 {[%clk 0:02:59.8]} 5. a3 {[%clk 0:02:58.1]}
5... Bxd2+ {[%clk 0:02:59.5]} 6. Qxd2 {[%clk 0:02:59]} 6... Bb7 {[%clk
0:03:00.2]} 7. e3 {[%clk 0:02:55.5]} 7... O-O {[%clk 0:02:59.2]} 8. Bd3 {[%clk
0:02:55.2]} 8... d6 {[%clk 0:02:54.8]} 9. Qc2 {[%clk 0:02:54.7]} 9... Nbd7
{[%clk 0:02:54.2]} 10. b4 {[%clk 0:02:39.9]} 10... Qe7 {[%clk 0:02:51.4]} 11.
Bb2 {[%clk 0:02:37.9]} 11... e5 {[%clk 0:02:51]} 12. dxe5 {[%clk 0:02:17.8]}
12... dxe5 {[%clk 0:02:49.1]} 13. e4 {[%clk 0:02:16.6]} 13... a5 {[%clk
0:02:47.6]} 14. O-O {[%clk 0:02:15.1]} 14... Rfe8 {[%clk 0:01:52.7]} 15. Bc3
{[%clk 0:02:13]} 15... axb4 {[%clk 0:01:47.9]} 16. axb4 {[%clk 0:02:13.9]} 16...
Qe6 {[%clk 0:01:41.6]} 17. Rae1 {[%clk 0:01:40.7]} 17... Nh5 {[%clk 0:01:38.6]}
18. g3 {[%clk 0:01:35]} 18... Nf4 {[%clk 0:01:37.9]} 19. Re3 {[%clk 0:01:18.3]}
19... Nxd3 {[%clk 0:01:34.1]} 20. Qxd3 {[%clk 0:01:19.2]} 20... Ba6 {[%clk
0:01:29.4]} 21. Rd1 {[%clk 0:01:15]} 21... Nf6 {[%clk 0:00:12.5]} 22. Nxe5
{[%clk 0:01:10.2]} 22... h5 {[%clk 0:00:12.9]} 23. b5 {[%clk 0:01:04.7]} 23...
Bb7 {[%clk 0:00:12.7]} 24. f3 {[%clk 0:01:01.5]} 24... Ra3 {[%clk 0:00:09.3]}
25. Nd7 {[%clk 0:00:49.6]} 25... Nxd7 {[%clk 0:00:03.7]} 26. Qxd7 {[%clk
0:00:50.5]} 26... Bc8 {[%clk 0:00:01.6]} 27. Qxe6 {[%clk 0:00:49.8]} 27... Bxe6
{[%clk 0:00:02.5]} 28. Bd4 {[%clk 0:00:40.4]} 28... Rxe3 {[%clk 0:00:02.7]} 29.
Bxe3 {[%clk 0:00:41.3]} 29... Bxc4 {[%clk 0:00:03.4]} 30. Rc1 {[%clk 0:00:41.7]}
30... Bxb5 {[%clk 0:00:03.9]} 31. Rxc7 {[%clk 0:00:41.7]} 31... Be2 {[%clk
0:00:03.9]} 32. Kf2 {[%clk 0:00:41.5]} 32... Bd1 {[%clk 0:00:04.5]} 33. Bxb6
{[%clk 0:00:41.4]} 33... Rb8 {[%clk 0:00:05.1]} 34. Bd4 {[%clk 0:00:41.1]} 34...
Ra8 {[%clk 0:00:03.6]} 35. h4 {[%clk 0:00:37.9]} 35... Ra2+ {[%clk 0:00:02.3]}
36. Ke3 {[%clk 0:00:38.1]} 36... Re2+ {[%clk 0:00:02.4]} 37. Kf4 {[%clk
0:00:37.7]} 37... Re1 {[%clk 0:00:03.3]} 38. Rc1 {[%clk 0:00:25.1]} 38... Rf1
{[%clk 0:00:03.3]} 39. Kg5 {[%clk 0:00:25.4]} 39... Kh7 {[%clk 0:00:02.4]} 40.
f4 {[%clk 0:00:23.5]} 40... Be2 {[%clk 0:00:02.3]} 41. Rxf1 {[%clk 0:00:21.7]}
41... Bxf1 {[%clk 0:00:02.4]} 42. Kxh5 {[%clk 0:00:22.2]} 42... Bd3 {[%clk
0:00:02.8]} 43. e5 {[%clk 0:00:20.9]} 43... Be2+ {[%clk 0:00:03.3]} 44. Kg5
{[%clk 0:00:21.2]} 44... Bd3 {[%clk 0:00:03.7]} 45. h5 {[%clk 0:00:21.1]} 45...
Be2 {[%clk 0:00:04]} 46. g4 {[%clk 0:00:20.9]} 46... Bd3 {[%clk 0:00:04.5]} 47.
f5 {[%clk 0:00:21.1]} 47... Bc4 {[%clk 0:00:05.1]} 48. Bc5 {[%clk 0:00:19.8]}
48... Kg8 {[%clk 0:00:05.2]} 49. Bd6 {[%clk 0:00:19.3]} 49... Be2 {[%clk
0:00:04.8]} 50. Ba3 {[%clk 0:00:17.3]} 50... Bd1 {[%clk 0:00:04.8]} 51. Bc1
{[%clk 0:00:17.1]} 51... Be2 {[%clk 0:00:04.8]} 52. Kh4 {[%clk 0:00:17.2]} 52...
Bd1 {[%clk 0:00:05]} 53. h6 {[%clk 0:00:17.2]} 53... g6 {[%clk 0:00:03.7]} 54.
Kg5 {[%clk 0:00:16.9]} 54... gxf5 {[%clk 0:00:03.9]} 55. gxf5 {[%clk 0:00:16.8]}
55... Bc2 {[%clk 0:00:04.4]} 56. Kf6 {[%clk 0:00:15.7]} 56... Bb3 {[%clk
0:00:04.9]} 57. Ke7 {[%clk 0:00:15.2]} 57... Bc2 {[%clk 0:00:04.7]} 58. e6
{[%clk 0:00:13.9]} 58... fxe6 {[%clk 0:00:04.9]} 59. fxe6 {[%clk 0:00:13.3]}
59... Bb3 {[%clk 0:00:05.4]} 60. Kd7 {[%clk 0:00:12.9]} 60... Ba4+ {[%clk
0:00:05.6]} 61. Kd8 {[%clk 0:00:12.6]} 61... Kf8 {[%clk 0:00:06.1]} 62. e7+
{[%clk 0:00:11.4]} 62... Kf7 {[%clk 0:00:06.3]} 63. Bb2 {[%clk 0:00:11.5]} 63...
Kg6 {[%clk 0:00:04.7]} 64. Bg7 {[%clk 0:00:08.9]} 64... Kf7 {[%clk 0:00:04.7]}
65. Bf8 {[%clk 0:00:06.6]} 65... Kg6 {[%clk 0:00:04]} 66. e8=Q+ {[%clk 0:00:06]}
66... Bxe8 {[%clk 0:00:04.3]} 67. Kxe8 {[%clk 0:00:06.9]} 67... Kh7 {[%clk
0:00:05.1]} 68. Kf7 {[%clk 0:00:07]} 68... Kh8 {[%clk 0:00:05.7]} 69. Kg6 {[%clk
0:00:07.2]} 69... Kg8 {[%clk 0:00:05.9]} 70. Bc5 {[%clk 0:00:07.2]} 1-0

[Event "*** SCC Grand Prix: Titled Tuesday Blitz"]
[Site "Chess.com"]
[Date "2020.07.07"]
[Round "7"]
[White "PowerThinking2650"]
[Black "malakismayil"]
[Result "1/2-1/2"]
[WhiteElo "2310"]
[BlackElo "2145"]
[TimeControl "180+1"]
[EndTime "11:21:01 PDT"]
[Termination "Game drawn - insufficient material"]

1. e4 {[%clk 0:03:00.9]} 1... e5 {[%clk 0:02:57]} 2. Nf3 {[%clk 0:03:00.2]} 2...
Nc6 {[%clk 0:02:56.9]} 3. Nc3 {[%clk 0:03:00.8]} 3... Nf6 {[%clk 0:02:56]} 4. d4
{[%clk 0:03:01.3]} 4... exd4 {[%clk 0:02:38.9]} 5. Nxd4 {[%clk 0:03:02.2]} 5...
d6 {[%clk 0:02:34.4]} 6. Nxc6 {[%clk 0:02:48.6]} 6... bxc6 {[%clk 0:02:35.3]} 7.
Bf4 {[%clk 0:02:48.9]} 7... Be7 {[%clk 0:02:21.2]} 8. e5 {[%clk 0:02:39.4]} 8...
dxe5 {[%clk 0:02:22.1]} 9. Qxd8+ {[%clk 0:02:38.2]} 9... Bxd8 {[%clk 0:02:21.8]}
10. Bxe5 {[%clk 0:02:38.1]} 10... Bf5 {[%clk 0:02:18]} 11. O-O-O {[%clk
0:02:32.6]} 11... O-O {[%clk 0:02:06.2]} 12. f3 {[%clk 0:02:30.2]} 12... Nd7
{[%clk 0:02:03.2]} 13. Bf4 {[%clk 0:02:25.1]} 13... Nb6 {[%clk 0:01:52.7]} 14.
g4 {[%clk 0:02:17.7]} 14... Be6 {[%clk 0:01:51.1]} 15. h4 {[%clk 0:02:11.8]}
15... Nd5 {[%clk 0:01:49.6]} 16. Bd2 {[%clk 0:02:05.1]} 16... Bf6 {[%clk
0:01:46.2]} 17. Ne4 {[%clk 0:02:00.4]} 17... Be7 {[%clk 0:01:45.1]} 18. c4
{[%clk 0:01:38.4]} 18... Nb6 {[%clk 0:01:40.5]} 19. b3 {[%clk 0:01:31.7]} 19...
f5 {[%clk 0:01:36.3]} 20. gxf5 {[%clk 0:01:02.8]} 20... Bxf5 {[%clk 0:01:37.2]}
21. Bg5 {[%clk 0:00:52.8]} 21... Ba3+ {[%clk 0:01:26.6]} 22. Kc2 {[%clk
0:00:49.7]} 22... Rae8 {[%clk 0:01:21.6]} 23. Bd3 {[%clk 0:00:46.6]} 23... h6
{[%clk 0:00:24.9]} 24. Be3 {[%clk 0:00:40.4]} 24... Nd7 {[%clk 0:00:25]} 25. Bd4
{[%clk 0:00:28.2]} 25... Ne5 {[%clk 0:00:22.9]} 26. Rhg1 {[%clk 0:00:25.7]}
26... Rf7 {[%clk 0:00:17.7]} 27. Rdf1 {[%clk 0:00:20]} 27... Rd7 {[%clk
0:00:12.1]} 28. Nf6+ {[%clk 0:00:15.5]} 28... Kf7 {[%clk 0:00:11.8]} 29. Nxd7
{[%clk 0:00:10.5]} 29... Bxd7 {[%clk 0:00:12.7]} 30. Be4 {[%clk 0:00:09.1]}
30... c5 {[%clk 0:00:11.9]} 31. Bc3 {[%clk 0:00:08.3]} 31... Bb4 {[%clk
0:00:08.3]} 32. h5 {[%clk 0:00:08.3]} 32... Bxc3 {[%clk 0:00:07.5]} 33. Kxc3
{[%clk 0:00:09.2]} 33... Bc6 {[%clk 0:00:08]} 34. Re1 {[%clk 0:00:08.8]} 34...
Bxe4 {[%clk 0:00:06.4]} 35. Rxe4 {[%clk 0:00:07.8]} 35... Nd7 {[%clk 0:00:04.4]}
36. Rf4+ {[%clk 0:00:06.9]} 36... Nf6 {[%clk 0:00:04.2]} 37. Kd3 {[%clk
0:00:05.7]} 37... Rd8+ {[%clk 0:00:03.8]} 38. Ke2 {[%clk 0:00:05.9]} 38... Re8+
{[%clk 0:00:04.7]} 39. Kf2 {[%clk 0:00:06.1]} 39... Rd8 {[%clk 0:00:05.6]} 40.
Re1 {[%clk 0:00:06.3]} 40... Rd2+ {[%clk 0:00:05.9]} 41. Re2 {[%clk 0:00:06.5]}
41... Rd1 {[%clk 0:00:06.4]} 42. Rf5 {[%clk 0:00:06.2]} 42... Rh1 {[%clk
0:00:06.5]} 43. Rxc5 {[%clk 0:00:05.7]} 43... Nxh5 {[%clk 0:00:04.6]} 44. Rxc7+
{[%clk 0:00:05.4]} 44... Kg6 {[%clk 0:00:04.9]} 45. Rc6+ {[%clk 0:00:05.5]}
45... Nf6 {[%clk 0:00:04.3]} 46. Ree6 {[%clk 0:00:04.3]} 46... Rh2+ {[%clk
0:00:04.4]} 47. Kg3 {[%clk 0:00:04.3]} 47... Rxa2 {[%clk 0:00:05.3]} 48. c5
{[%clk 0:00:04.2]} 48... Kg5 {[%clk 0:00:04.7]} 49. Re5+ {[%clk 0:00:03.9]}
49... Kg6 {[%clk 0:00:04.8]} 50. b4 {[%clk 0:00:04.2]} 50... Rb2 {[%clk
0:00:04]} 51. Re4 {[%clk 0:00:04.4]} 51... h5 {[%clk 0:00:04.2]} 52. Rc4 {[%clk
0:00:04]} 52... Kf5 {[%clk 0:00:03.8]} 53. Rxf6+ {[%clk 0:00:03.8]} 53... gxf6
{[%clk 0:00:03.3]} 54. c6 {[%clk 0:00:04.7]} 54... h4+ {[%clk 0:00:01.5]} 55.
Kxh4 {[%clk 0:00:04]} 55... Rh2+ {[%clk 0:00:01.8]} 56. Kg3 {[%clk 0:00:04.3]}
56... Rh8 {[%clk 0:00:02.5]} 57. b5 {[%clk 0:00:04.4]} 57... Rc8 {[%clk
0:00:03.4]} 58. Rc5+ {[%clk 0:00:04.1]} 58... Ke6 {[%clk 0:00:03.8]} 59. Kf4
{[%clk 0:00:04.5]} 59... Kd6 {[%clk 0:00:04.1]} 60. Rc4 {[%clk 0:00:04.5]} 60...
Kc7 {[%clk 0:00:03.6]} 61. Rc3 {[%clk 0:00:04.3]} 61... Kb6 {[%clk 0:00:04]} 62.
Kf5 {[%clk 0:00:04.8]} 62... Kxb5 {[%clk 0:00:03.8]} 63. c7 {[%clk 0:00:04.6]}
63... Kb6 {[%clk 0:00:03.3]} 64. Kxf6 {[%clk 0:00:04.7]} 64... Rxc7 {[%clk
0:00:03.7]} 65. Rxc7 {[%clk 0:00:03.9]} 65... Kxc7 {[%clk 0:00:04.6]} 66. Ke7
{[%clk 0:00:04.6]} 66... a5 {[%clk 0:00:03.8]} 67. f4 {[%clk 0:00:05.5]} 67...
a4 {[%clk 0:00:04.3]} 68. f5 {[%clk 0:00:06.4]} 68... a3 {[%clk 0:00:04.8]} 69.
f6 {[%clk 0:00:07.3]} 69... a2 {[%clk 0:00:05.5]} 70. f7 {[%clk 0:00:08.2]}
70... a1=Q {[%clk 0:00:06]} 71. f8=Q {[%clk 0:00:09.1]} 71... Qa3+ {[%clk
0:00:06.2]} 72. Kf7 {[%clk 0:00:08.4]} 72... Qxf8+ {[%clk 0:00:07.1]} 73. Kxf8
{[%clk 0:00:08.4]} 1/2-1/2

[Event "*** SCC Grand Prix: Titled Tuesday Blitz"]
[Site "Chess.com"]
[Date "2020.07.07"]
[Round "7"]
[White "ARMQUEEN"]
[Black "Munkhzul_Turmunkh"]
[Result "0-1"]
[WhiteElo "2420"]
[BlackElo "2607"]
[TimeControl "180+1"]
[EndTime "11:21:02 PDT"]
[Termination "Munkhzul_Turmunkh won by resignation"]

1. e4 {[%clk 0:03:00.9]} 1... c5 {[%clk 0:02:58.5]} 2. Nc3 {[%clk 0:03:00.6]}
2... Nc6 {[%clk 0:02:58.3]} 3. Bb5 {[%clk 0:03:00.2]} 3... Nd4 {[%clk
0:02:58.3]} 4. Bc4 {[%clk 0:03:00.6]} 4... e6 {[%clk 0:02:58]} 5. Nge2 {[%clk
0:02:59.7]} 5... Nf6 {[%clk 0:02:57.8]} 6. O-O {[%clk 0:02:59.6]} 6... a6 {[%clk
0:02:57.5]} 7. a4 {[%clk 0:03:00]} 7... d5 {[%clk 0:02:55.9]} 8. exd5 {[%clk
0:03:00.9]} 8... exd5 {[%clk 0:02:56]} 9. Ba2 {[%clk 0:03:01.6]} 9... Bd6 {[%clk
0:02:55.7]} 10. Nxd4 {[%clk 0:02:46.7]} 10... cxd4 {[%clk 0:02:55.2]} 11. Re1+
{[%clk 0:02:46.9]} 11... Be6 {[%clk 0:02:49.4]} 12. Ne2 {[%clk 0:02:18.6]} 12...
d3 {[%clk 0:02:36.2]} 13. cxd3 {[%clk 0:02:15.8]} 13... O-O {[%clk 0:02:34]} 14.
Ng3 {[%clk 0:02:11.5]} 14... Rc8 {[%clk 0:02:24.3]} 15. d4 {[%clk 0:02:10.8]}
15... Qb6 {[%clk 0:02:22.9]} 16. d3 {[%clk 0:02:06.1]} 16... Qxd4 {[%clk
0:02:20.5]} 17. Bg5 {[%clk 0:01:44.3]} 17... Ng4 {[%clk 0:02:06.3]} 18. Re2
{[%clk 0:01:30.9]} 18... Bc5 {[%clk 0:01:45.8]} 19. Qf1 {[%clk 0:01:06.5]} 19...
h6 {[%clk 0:01:38.4]} 20. Bd2 {[%clk 0:01:00.4]} 20... Qf6 {[%clk 0:01:35.9]}
21. Bc3 {[%clk 0:00:55.6]} 21... Bd4 {[%clk 0:01:34.2]} 22. Bxd4 {[%clk
0:00:54.4]} 22... Qxd4 {[%clk 0:01:35.1]} 23. h3 {[%clk 0:00:54.7]} 23... Ne5
{[%clk 0:01:33]} 24. Rd2 {[%clk 0:00:54.8]} 24... Bxh3 {[%clk 0:01:29.5]} 25.
Ne2 {[%clk 0:00:52.9]} 25... Qb6 {[%clk 0:01:12.7]} 26. Kh1 {[%clk 0:00:41.8]}
26... Bf5 {[%clk 0:01:07.7]} 27. Bxd5 {[%clk 0:00:40.8]} 27... Bxd3 {[%clk
0:01:04.7]} 28. f4 {[%clk 0:00:33.8]} 28... Ng4 {[%clk 0:01:04]} 29. Qf3 {[%clk
0:00:27.4]} 29... Bxe2 {[%clk 0:00:49.9]} 30. Rxe2 {[%clk 0:00:26.3]} 30... Nf6
{[%clk 0:00:49.7]} 31. Bb3 {[%clk 0:00:23.7]} 31... Rc5 {[%clk 0:00:48.7]} 32.
g3 {[%clk 0:00:19.4]} 32... Qb4 {[%clk 0:00:35.1]} 33. Kg2 {[%clk 0:00:18.5]}
33... b6 {[%clk 0:00:32.3]} 34. Rae1 {[%clk 0:00:18.1]} 34... Rc7 {[%clk
0:00:28.9]} 35. Bc2 {[%clk 0:00:18.3]} 35... Rd7 {[%clk 0:00:25.9]} 36. b3
{[%clk 0:00:17.2]} 36... Qc5 {[%clk 0:00:24.2]} 37. Bb1 {[%clk 0:00:16.2]} 37...
a5 {[%clk 0:00:24.1]} 38. g4 {[%clk 0:00:15.9]} 38... Qb4 {[%clk 0:00:23.6]} 39.
Rh1 {[%clk 0:00:15.9]} 39... Nd5 {[%clk 0:00:23.5]} 40. g5 {[%clk 0:00:14.4]}
40... Nxf4+ {[%clk 0:00:23.5]} 41. Kg3 {[%clk 0:00:12.5]} 41... Nxe2+ {[%clk
0:00:23.7]} 42. Qxe2 {[%clk 0:00:13.2]} 42... Qd6+ {[%clk 0:00:23.1]} 43. Kg2
{[%clk 0:00:12.9]} 43... Qd2 {[%clk 0:00:22.5]} 44. Kf2 {[%clk 0:00:12.8]} 44...
Qxe2+ {[%clk 0:00:22.3]} 45. Kxe2 {[%clk 0:00:13.7]} 45... Re8+ {[%clk
0:00:21.7]} 46. Kf3 {[%clk 0:00:14.1]} 46... hxg5 {[%clk 0:00:21.7]} 47. Bh7+
{[%clk 0:00:13.8]} 47... Kf8 {[%clk 0:00:21.9]} 48. Be4 {[%clk 0:00:13.8]} 48...
Rc7 {[%clk 0:00:20.7]} 49. Bd5 {[%clk 0:00:12.7]} 49... Rc3+ {[%clk 0:00:19.9]}
50. Kg4 {[%clk 0:00:12.9]} 50... Rd8 {[%clk 0:00:18.4]} 51. Bc4 {[%clk
0:00:12.7]} 51... Rd4+ {[%clk 0:00:17.6]} 52. Kxg5 {[%clk 0:00:12.5]} 52...
Rcxc4 {[%clk 0:00:17.7]} 53. bxc4 {[%clk 0:00:12.1]} 53... Rxc4 {[%clk
0:00:18.1]} 54. Kf5 {[%clk 0:00:12.9]} 54... Rc5+ {[%clk 0:00:17.5]} 55. Ke4
{[%clk 0:00:13.2]} 55... Rc4+ {[%clk 0:00:17.9]} 56. Kd5 {[%clk 0:00:13.6]}
56... Rxa4 {[%clk 0:00:17.8]} 57. Kd6 {[%clk 0:00:14.2]} 57... g6 {[%clk
0:00:18.1]} 58. Ke5 {[%clk 0:00:14.3]} 58... Kg7 {[%clk 0:00:18.3]} 59. Rb1
{[%clk 0:00:14.3]} 59... Rb4 {[%clk 0:00:18.3]} 60. Rc1 {[%clk 0:00:14.4]} 60...
a4 {[%clk 0:00:18.6]} 61. Kd5 {[%clk 0:00:14.8]} 61... a3 {[%clk 0:00:18.8]} 62.
Ra1 {[%clk 0:00:15.2]} 62... Rb3 {[%clk 0:00:18.7]} 63. Kc4 {[%clk 0:00:15]}
63... Rf3 {[%clk 0:00:18.8]} 64. Kb5 {[%clk 0:00:15.4]} 64... g5 {[%clk
0:00:18.9]} 65. Kxb6 {[%clk 0:00:15.9]} 65... Kg6 {[%clk 0:00:19.4]} 66. Kc5
{[%clk 0:00:16.4]} 66... g4 {[%clk 0:00:19.6]} 67. Kd4 {[%clk 0:00:16.6]} 67...
Kg5 {[%clk 0:00:20.1]} 68. Ke4 {[%clk 0:00:16.9]} 68... f5+ {[%clk 0:00:20.3]}
69. Ke5 {[%clk 0:00:15.9]} 69... g3 {[%clk 0:00:20.8]} 70. Kd4 {[%clk
0:00:16.4]} 70... Kg4 {[%clk 0:00:20.7]} 71. Rg1 {[%clk 0:00:15.1]} 71... f4
{[%clk 0:00:20.9]} 72. Ke5 {[%clk 0:00:15.2]} 72... Re3+ {[%clk 0:00:20.9]} 73.
Kd4 {[%clk 0:00:15.6]} 73... a2 {[%clk 0:00:21]} 74. Kc4 {[%clk 0:00:14.5]}
74... Re2 {[%clk 0:00:21.2]} 75. Kd3 {[%clk 0:00:14.3]} 75... f3 {[%clk
0:00:21.4]} 76. Rc1 {[%clk 0:00:13.8]} 76... g2 {[%clk 0:00:21]} 77. Rc4+ {[%clk
0:00:13.9]} 77... Kg3 {[%clk 0:00:21.3]} 78. Rc1 {[%clk 0:00:14.8]} 78... Rf2
{[%clk 0:00:20.5]} 79. Ke3 {[%clk 0:00:14.2]} 79... Rf1 {[%clk 0:00:20.9]} 80.
Rc2 {[%clk 0:00:14.7]} 80... g1=Q+ {[%clk 0:00:20.2]} 0-1